bitfinex-derivatives/quotes_ETHF0:USTF0_20250410
["timestamp","ask_amount","ask_price","bid_price","bid_amount"]
[1744263547177,7.08047,1619.3,1619.2,2.92955783]
[1744263548678,7.08047,1619.3,1619.2,4.24755783]
[1744263551074,7.08047,1619.3,1619.2,1.32725783]
[1744263551376,22.12777,1619.3,1619.2,0.00925783]
[1744263552279,17.12777,1619.3,1619.2,0.00925783]
[1744263552481,12.91347,1619.3,1619.2,0.00925783]
[1744263552778,11.28657,1619.3,1619.2,0.00925783]
[1744263552979,11.28657,1619.3,1619.2,2.88645783]
[1744263553171,12.83597,1619.3,1619.2,2.88645783]
[1744263554781,21.04377,1619.3,1619.2,0.00925783]
[1744263554970,22.04927,1619.3,1619.2,7.83e-06]
[1744263555170,20.8137,1619.3,1618.5,3.2078]
[1744263555372,1.23595,1618.8,1618.7,1.3928]
[1744263555580,5.45295,1618.8,1618.7,1.3928]
[1744263555877,5.45295,1618.8,1618.7,6.3928]
[1744263556681,5.45295,1618.8,1618.7,2.62882]
[1744263556884,5.45295,1618.8,1618.7,7.62882]
[1744263557075,5.45295,1618.8,1618.7,9.6006]
[1744263557776,5.45295,1618.8,1618.7,5.83662]
[1744263558186,5.45295,1618.8,1618.7,4.6006]
[1744263559583,5.45295,1618.8,1618.7,5.83662]
[1744263560278,5.45295,1618.8,1618.7,10.83662]
[1744263561285,5.45295,1618.8,1618.7,5.83662]
[1744263561486,4.217,1618.8,1618.7,5.83662]
[1744263561682,0.00925783,1618.9,1618.8,1.23595]
[1744263562185,0.00925783,1618.9,1618.8,6.23595]
[1744263566491,0.00925783,1618.9,1618.8,47.03595]
[1744263567293,10.29471992,1619.3,1619.2,1.23564]
[1744263567483,10.29471992,1619.3,1619.2,4.44344]
[1744263567789,9.05911992,1619.3,1619.2,4.44344]
[1744263567990,4.84111992,1619.3,1619.2,9.44344]
[1744263568181,2.71891992,1619.3,1619.2,9.44344]
[1744263568781,2.71891992,1619.3,1619.2,4.44344]
[1744263570589,2.71891992,1619.3,1619.2,5.77374]
[1744263571295,0.00925783,1619.4,1619.3,1.23557]
[1744263571483,0.00925783,1619.4,1619.3,2.56757]
[1744263572292,1.24474783,1619.4,1619.3,4.17937]
[1744263572585,1.24474783,1619.4,1619.3,2.9438]
[1744263572792,2.87304783,1619.4,1619.3,2.9438]
[1744263573895,1.24474783,1619.4,1619.3,4.17937]
[1744263577082,0.00925783,1619.4,1619.3,4.17937]
[1744263578396,7.26167988,1619.5,1619.3,7.9438]
[1744263578597,1.92767989,1619.5,1619.4,10.43929]
[1744263578792,9.68223985,1619.7,1619.6,1.23534]
[1744263578992,9.68223985,1619.7,1619.6,4.44314]
[1744263579399,9.68223985,1619.7,1619.6,6.09364]
[1744263580096,7.55983985,1619.7,1619.6,11.09364]
[1744263580394,0.38971985,1619.7,1619.6,17.08964]
[1744263580692,9.85e-06,1619.7,1619.6,62.88964]
[1744263581099,10.33181467,1619.9,1619.8,1.23518]
[1744263581299,10.33181467,1619.9,1619.8,8.65898]
[1744263581498,10.33181467,1619.9,1619.8,13.65898]
[1744263581701,10.33181467,1619.9,1619.8,15.27918]
[1744263581995,10.33181467,1619.9,1619.8,51.86318]
[1744263582190,10.33181467,1620.1,1620.0,1.23503]
[1744263582395,10.33181467,1620.1,1620.0,4.44283]
[1744263583403,11.56677467,1620.1,1620.0,4.44283]
[1744263583700,13.16967467,1620.1,1620.0,45.24283]
[1744263583902,13.16967467,1620.1,1620.0,50.24283]
[1744263584907,11.93471467,1620.1,1620.0,49.0078]
[1744263585108,13.16967467,1620.1,1620.0,5.0]
[1744263586210,13.16967467,1620.1,1620.0,4.44283]
[1744263586409,1.23503,1620.0,1619.9,43.63989783]
[1744263586613,2.76093,1620.0,1619.9,43.63989783]
[1744263587006,2.76093,1620.0,1619.9,42.04429783]
[1744263588426,2.76093,1620.0,1619.9,43.71209783]
[1744263590216,1.23501,1620.1,1620.0,1.23499]
[1744263590517,2.85371,1620.1,1620.0,4.44279]
[1744263592414,2.85371,1620.1,1620.0,3.2078]
[1744263592707,2.85371,1620.1,1619.9,0.00925783]
[1744263592708,1.23503,1620.0,1619.9,0.00925783]
[1744263592913,2.85373,1620.0,1619.9,0.00925783]
[1744263593613,2.85373,1620.0,1619.9,1.24436783]
[1744263593816,2.85373,1620.0,1619.9,2.84226783]
[1744263594017,2.85373,1620.0,1619.9,6.05006783]
[1744263594416,2.85373,1620.0,1619.9,0.00925783]
[1744263596817,4.21743,1620.0,1619.9,0.00925783]
[1744263597613,9.21743,1620.0,1619.9,0.00925783]
[1744263598010,4.21743,1620.0,1619.9,0.00925783]
[1744263598411,9.21743,1620.0,1619.9,0.00925783]
[1744263598711,4.21743,1620.0,1619.9,0.00925783]
[1744263598911,8.43243,1620.0,1619.9,0.00925783]
[1744263600715,8.43243,1620.0,1619.9,1.24436783]
[1744263601014,8.43243,1620.0,1619.9,0.00925783]
[1744263604016,13.43243,1620.0,1619.9,0.00925783]
[1744263604315,16.64023,1620.0,1619.9,0.00925783]
[1744263604712,13.43243,1620.0,1619.9,0.00925783]
[1744263605108,21.2392,1620.0,1619.3,1.2355]
[1744263605308,1.23557,1619.3,1619.2,1.589]
[1744263605517,1.23557,1619.3,1619.2,2.82464]
[1744263606621,1.23557,1619.3,1619.2,1.589]
[1744263607122,1.23557,1619.3,1619.2,2.82464]
[1744263607623,1.23557,1619.3,1619.2,1.589]
[1744263607820,1.23564,1619.2,1619.1,10.44871783]
[1744263608020,2.91744,1619.2,1619.1,12.10301783]
[1744263608519,4.23484,1619.2,1619.1,12.10301783]
[1744263608822,4.23484,1619.2,1619.1,6.10701783]
[1744263609017,1.3174,1619.2,1619.1,6.10701783]
[1744263609220,0.00925783,1619.3,1619.2,1.23564]
[1744263609423,0.00925783,1619.3,1619.2,2.80444]
[1744263612223,0.00925783,1619.3,1619.2,7.80444]
[1744263613228,0.00925783,1619.3,1619.2,2.80444]
[1744263613730,0.00925783,1619.3,1619.2,7.80444]
[1744263614229,0.00925783,1619.3,1619.2,12.80444]
[1744263614627,0.00925783,1619.3,1619.2,18.80044]
[1744263617821,0.00925783,1619.3,1619.2,12.23164]
[1744263618027,0.00925783,1619.3,1619.2,13.85844]
[1744263618628,1.24482783,1619.3,1619.2,13.85844]
[1744263618932,0.00925783,1619.3,1619.2,13.85844]
[1744263619133,1.24482783,1619.3,1619.2,13.85844]
[1744263619619,4.19592783,1619.3,1619.2,12.6228]
[1744263619824,4.19592783,1619.3,1619.2,10.996]
[1744263620534,4.19592783,1619.3,1619.2,5.0]
[1744263621133,4.19592783,1619.3,1619.2,6.23564]
[1744263621335,2.62432783,1619.3,1619.2,7.85074]
[1744263621533,2.62432783,1619.3,1619.2,2.85074]
[1744263622934,1.24482783,1619.3,1619.2,2.85074]
[1744263623136,1.24482783,1619.3,1619.2,5.62574]
[1744263624035,0.00925783,1619.3,1619.2,5.62574]
[1744263625039,5.00925783,1619.3,1619.1,3.21705783]
[1744263625235,2.92174,1619.2,1619.1,3.21705783]
[1744263625434,4.21244,1619.2,1619.1,4.45277783]
[1744263626239,1.24488783,1619.3,1619.2,1.23564]
[1744263626540,0.00925783,1619.3,1619.2,2.92444]
[1744263626740,1.24482783,1619.3,1619.2,2.92444]
[1744263626932,2.93092783,1619.3,1619.2,2.92444]
[1744263628741,1.69535783,1619.3,1619.2,2.92444]
[1744263629039,2.93092783,1619.3,1619.2,2.92444]
[1744263629338,1.24482783,1619.3,1619.2,2.92444]
[1744263629730,2.77012783,1619.3,1619.2,2.92444]
[1744263630640,1.24482783,1619.3,1619.2,2.92444]
[1744263633445,1.24482783,1619.3,1619.2,6.13224]
[1744263636639,0.00925783,1619.3,1619.2,11.13224]
[1744263636845,0.00925783,1619.3,1619.2,17.12824]
[1744263637043,0.00925783,1619.3,1619.2,12.12824]
[1744263637343,0.00925783,1619.3,1619.2,17.12824]
[1744263638348,0.00925783,1619.3,1619.2,22.12824]
[1744263640148,7.83e-06,1619.3,1619.2,22.12824]
[1744263640846,7.83e-06,1619.3,1619.2,17.12824]
[1744263642350,7.83e-06,1619.3,1619.2,40.7487075]
[1744263642547,7.83e-06,1619.3,1619.2,45.7487075]
[1744263642947,7.83e-06,1619.3,1619.2,39.0599075]
[1744263643450,5.50087783,1619.3,1619.2,33.0639075]
[1744263643651,4.26530783,1619.3,1619.2,33.0639075]
[1744263643854,4.26530783,1619.3,1619.2,28.0639075]
[1744263644953,1.34050783,1619.3,1619.2,28.0639075]
[1744263645253,1.34050783,1619.3,1619.2,29.4199075]
[1744263646156,1.34050783,1619.3,1619.2,34.4199075]
[1744263646657,1.34050783,1619.3,1619.2,10.79944]
[1744263646848,7.83e-06,1619.3,1619.2,10.79944]
[1744263647046,7.83e-06,1619.3,1619.2,16.79544]
[1744263648153,7.83e-06,1619.3,1619.2,21.79544]
[1744263648553,7.83e-06,1619.3,1619.2,23.40474]
[1744263651560,7.83e-06,1619.3,1619.2,37.48034469]
[1744263655861,7.83e-06,1619.3,1619.2,47.02783476]
[1744263656164,7.83e-06,1619.3,1619.2,42.02783476]
[1744263661265,7.83e-06,1619.3,1619.2,40.67183476]
[1744263663672,7.83e-06,1619.3,1619.2,39.06253476]
[1744263664374,7.83e-06,1619.3,1619.2,17.07634]
[1744263665176,7.83e-06,1619.3,1619.2,19.67114]
[1744263665571,7.83e-06,1619.3,1619.2,24.67114]
[1744263665774,7.26528195,1619.9,1619.8,1.23518]
[1744263665970,7.26528195,1619.9,1619.8,14.65298]
[1744263666276,7.26528195,1619.9,1619.8,55.45298]
[1744263666976,7.26528195,1619.9,1619.8,57.09628]
[1744263667175,7.26528195,1619.9,1619.8,62.09628]
[1744263668771,4.34555783,1620.0,1619.9,1.23511]
[1744263668964,9.34555783,1620.0,1619.9,1.23511]
[1744263669374,4.34555783,1620.0,1619.9,1.23511]
[1744263669568,4.34555783,1620.0,1619.9,2.87841]
[1744263670076,4.34555783,1620.0,1619.9,6.23511]
[1744263672470,4.34555783,1620.0,1619.9,7.80131]
[1744263672778,1.38405783,1620.0,1619.9,13.79731]
[1744263673080,1.38405783,1620.0,1619.9,18.01031]
[1744263673280,7.83e-06,1620.0,1619.9,18.01031]
[1744263673578,7.83e-06,1620.0,1619.9,24.28961]
[1744263673977,7.83e-06,1620.0,1619.9,19.28961]
[1744263674172,7.83e-06,1620.0,1619.9,18.01031]
[1744263674479,7.83e-06,1620.0,1619.9,16.44411]
[1744263674887,1.36390783,1620.0,1619.9,16.44411]
[1744263675276,2.90970783,1620.0,1619.9,16.44411]
[1744263677083,2.90970783,1620.0,1619.9,26.12680261]
[1744263677282,2.90970783,1620.0,1619.9,27.80920261]
[1744263677782,1.36390783,1620.0,1619.9,27.80920261]
[1744263677983,1.36390783,1620.0,1619.9,29.15250261]
[1744263678185,1.36390783,1620.0,1619.9,27.80920261]
[1744263678679,10.35134195,1620.9,1620.2,1.23488]
[1744263678680,1.3755,1620.3,1620.2,1.23488]
[1744263678882,1.3755,1620.3,1620.2,14.65068]
[1744263680082,1.3755,1620.3,1620.2,19.65068]
[1744263680283,4.2747,1620.3,1620.2,19.65068]
[1744263680585,4.2747,1620.3,1620.2,9.44268]
[1744263680781,9.2747,1620.3,1620.2,9.44268]
[1744263681085,10.5095,1620.3,1620.2,5.0]
[1744263681277,10.5095,1620.3,1620.2,0.866]
[1744263681278,14.7215,1620.3,1620.2,0.866]
[1744263681475,1.23488,1620.2,1620.1,0.00925783]
[1744263681675,1.6239,1620.2,1620.1,0.00925783]
[1744263681975,6.6239,1620.2,1620.1,1.24421783]
[1744263682375,7.85878,1620.2,1620.1,1.24421783]
[1744263682582,7.85878,1620.2,1620.1,0.00925783]
[1744263682883,7.85878,1620.2,1620.1,1.24421783]
[1744263683186,7.85878,1620.2,1620.1,0.00925783]
[1744263683680,6.6239,1620.2,1620.1,1.24421783]
[1744263684380,1.6239,1620.2,1620.1,1.24421783]
[1744263684776,1.6239,1620.2,1620.1,2.81391783]
[1744263685179,1.6239,1620.2,1620.1,7.81391783]
[1744263685484,1.6239,1620.2,1620.1,6.24421783]
[1744263687685,1.6239,1620.2,1620.1,1.24421783]
[1744263688085,1.6239,1620.2,1620.1,2.78381783]
[1744263688285,2.6508,1620.3,1620.2,1.23488]
[1744263688579,4.2939,1620.3,1620.2,5.98228]
[1744263689181,4.2939,1620.3,1620.2,10.98228]
[1744263689680,1.6431,1620.3,1620.2,10.98228]
[1744263689983,0.00925783,1620.4,1620.3,1.2348]
[1744263690184,1.65235783,1620.4,1620.3,2.7744]
[1744263690588,0.00925783,1620.4,1620.3,2.7744]
[1744263690785,0.00925783,1620.4,1620.3,3.9929]
[1744263691086,0.00925783,1620.4,1620.3,8.9929]
[1744263691484,7.83e-06,1620.4,1620.3,19.2009]
[1744263691691,7.83e-06,1620.4,1620.3,24.2009]
[1744263693281,3.52623952,1620.5,1620.4,1.23473]
[1744263693476,3.52623952,1620.5,1620.4,6.01053]
[1744263693687,6.25353952,1620.9,1620.8,1.23442]
[1744263693993,4.70303952,1620.9,1620.8,45.24222]
[1744263694886,4.70303952,1620.9,1620.8,51.80712]
[1744263695291,3.52623952,1620.9,1620.8,51.80712]
[1744263697694,3.52623952,1620.9,1620.8,57.80312]
[1744263699486,2.07956952,1620.9,1620.8,62.80312]
[1744263699686,0.63092952,1620.9,1620.8,62.80312]
[1744263699888,0.00925783,1621.0,1620.9,1.23435]
[1744263700181,0.00925783,1621.0,1620.9,7.09695]
[1744263701494,0.00925783,1621.0,1620.9,12.09695]
[1744263703489,0.00925783,1621.0,1620.9,7.88695]
[1744263703690,0.00925783,1621.0,1620.9,6.23435]
[1744263704597,0.00925783,1621.0,1620.9,7.76455]
[1744263707301,0.00925783,1621.0,1620.9,10.97235]
[1744263708601,0.00925783,1621.0,1620.9,16.96835]
[1744263716299,0.00925783,1621.0,1620.9,15.43815]
[1744263716709,1.14735783,1621.0,1620.9,15.43815]
[1744263717303,1.14735783,1621.0,1620.9,17.11965]
[1744263722014,1.14735783,1621.0,1620.9,15.43815]
[1744263723810,0.00925783,1621.0,1620.9,16.98155]
[1744263728510,2.86785783,1621.0,1620.9,16.98155]
[1744263728716,2.86785783,1621.0,1620.9,15.43815]
[1744263732014,0.00925783,1621.0,1620.9,11.12815]
[1744263736524,7.83e-06,1621.0,1620.9,11.12815]
[1744263736725,7.83e-06,1621.0,1620.9,17.12415]
[1744263739025,7.83e-06,1621.0,1620.9,26.80684261]
[1744263739425,7.83e-06,1621.0,1620.9,31.80684261]
[1744263740325,7.83e-06,1621.0,1620.9,26.80684261]
[1744263743818,7.83e-06,1621.0,1620.9,26.62474973]
[1744263746926,1.1812,1621.5,1621.3,1.23404]
[1744263747132,1.1812,1621.5,1621.4,4.44177]
[1744263747328,1.1812,1621.5,1621.4,8.52667]
[1744263748024,8.87638195,1621.6,1621.5,1.23389]
[1744263748230,8.87638195,1621.6,1621.5,2.87979]
[1744263748231,8.88245418,1621.6,1621.5,2.87979]
[1744263750436,7.27135418,1621.6,1621.5,7.87979]
[1744263750933,8.82405418,1621.6,1621.5,7.87979]
[1744263751137,8.82405418,1621.6,1621.5,6.23389]
[1744263751731,15.05786418,1621.6,1621.5,5.0]
[1744263752738,1.23389,1621.5,1621.4,1.23396]
[1744263753038,1.23397,1621.4,1621.3,1.24322783]
[1744263753447,10.44297,1621.4,1621.3,1.24322783]
[1744263753648,12.09207,1621.4,1621.3,10.90325342]
[1744263755047,12.09207,1621.4,1621.3,9.66928342]
[1744263756246,12.09207,1621.4,1621.3,10.90332342]
[1744263756449,12.09207,1621.4,1621.3,9.66928342]
[1744263757155,12.09207,1621.4,1621.3,10.90332342]
[1744263757452,12.09207,1621.4,1621.3,9.66928342]
[1744263757647,17.92607,1621.4,1621.3,9.66928342]
[1744263758049,26.11700268,1621.4,1621.3,0.00925783]
[1744263758450,1.23419,1621.1,1621.0,4.44205]
[1744263758752,1.23419,1621.1,1621.0,4.44207]
[1744263758949,1.23419,1621.1,1620.8,44.0078]
[1744263758950,1.23435,1620.9,1620.8,44.0078]
[1744263759450,6.23435,1620.9,1620.8,45.24222]
[1744263759639,1.1854,1620.9,1620.8,45.24222]
[1744263759845,3.35565,1620.9,1620.8,45.24222]
[1744263760144,2.1213,1620.9,1620.8,45.24222]
[1744263761043,3.35565,1620.9,1620.8,45.24222]
[1744263762354,8.35565,1620.9,1620.8,4.44222]
[1744263763549,7.1213,1620.9,1620.8,4.44222]
[1744263763756,6.3293,1620.9,1620.8,4.44222]
[1744263763950,9.16365,1620.9,1620.8,4.44222]
[1744263764449,4.95565,1620.9,1620.8,4.44222]
[1744263764658,8.49950195,1621.1,1621.0,1.23427]
[1744263764852,8.20178195,1621.1,1620.8,7.52824]
[1744263765155,1.23435,1621.0,1620.9,1.2343]
[1744263765659,8.20178195,1621.1,1621.0,1.23427]
[1744263765848,8.20178195,1621.1,1621.0,4.44207]
[1744263766047,10.99688195,1621.1,1621.0,4.44207]
[1744263766755,10.06038195,1621.1,1621.0,4.44207]
[1744263767443,11.29457195,1621.1,1621.0,4.44207]
[1744263768056,4.02929,1621.1,1621.0,4.44207]
[1744263771460,4.02929,1621.1,1621.0,1.23427]
[1744263771960,1.23433,1621.0,1620.9,1.23428]
[1744263772162,2.80193,1621.0,1620.9,1.23428]
[1744263772461,3.73823,1621.0,1620.9,1.23428]
[1744263773848,2.5039,1621.0,1620.9,1.23428]
[1744263774160,2.48616,1621.1,1621.0,1.23427]
[1744263774361,4.05386,1621.1,1621.0,1.23427]
[1744263774658,4.05386,1621.1,1621.0,2.89557]
[1744263776162,4.05386,1621.1,1621.0,6.10337]
[1744263776362,4.05386,1621.1,1621.0,7.36507]
[1744263777460,5.44314,1621.2,1621.1,1.23419]
[1744263777661,5.44314,1621.2,1621.1,3.93899]
[1744263778768,4.209,1621.2,1621.1,3.93899]
[1744263780267,5.44312,1621.2,1621.1,2.7048]
[1744263780462,5.44312,1621.2,1621.1,1.5525]
[1744263780669,7.00822,1621.2,1621.1,2.78669]
[1744263782068,4.209,1621.2,1621.1,2.78669]
[1744263782570,4.209,1621.4,1621.3,1.23404]
[1744263783073,11.47428195,1621.5,1621.4,1.23397]
[1744263783457,11.47428195,1621.5,1621.4,6.11577]
[1744263785872,1.23992223,1621.6,1621.5,1.23389]
[1744263786072,1.23992223,1621.6,1621.5,2.87349]
[1744263786272,1.23992223,1621.6,1621.5,4.05219]
[1744263786473,1.23988223,1621.6,1621.5,4.05219]
[1744263787471,0.00607223,1621.6,1621.5,4.05219]
[1744263790578,0.00607223,1621.6,1621.5,9.05219]
[1744263791371,0.00607223,1621.6,1621.5,14.05219]
[1744263791571,0.00607223,1621.6,1621.5,9.05219]
[1744263791777,0.00607223,1621.6,1621.5,7.8183]
[1744263791978,1.23988223,1621.6,1621.5,6.6396]
[1744263792276,0.00607223,1621.6,1621.5,6.23389]
[1744263792578,1.61547223,1621.6,1621.5,7.89589]
[1744263792777,2.84928223,1621.6,1621.5,7.89589]
[1744263792977,2.84928223,1621.6,1621.5,2.89589]
[1744263793472,1.61547223,1621.6,1621.5,2.89589]
[1744263794870,2.84928223,1621.6,1621.5,2.89589]
[1744263795272,1.61547223,1621.6,1621.5,2.89589]
[1744263795471,2.84928223,1621.6,1621.5,2.89589]
[1744263795868,1.61547223,1621.6,1621.5,2.89589]
[1744263796376,2.84928223,1621.6,1621.5,2.89589]
[1744263796573,2.84928223,1621.6,1621.5,1.23389]
[1744263797279,7.05528223,1621.6,1621.5,1.23389]
[1744263797576,1.23389,1621.5,1621.4,1.23389]
[1744263797773,4.04909,1621.5,1621.4,1.23389]
[1744263798284,1.23397,1621.4,1621.3,5.06958]
[1744263798483,2.89417,1621.4,1621.3,5.06958]
[1744263798784,1.6602,1621.4,1621.3,5.06958]
[1744263799884,2.89417,1621.4,1621.3,3.85908]
[1744263800387,7.10017,1621.4,1621.3,1.0999]
[1744263800571,8.95113,1621.4,1621.1,1.1781]
[1744263800778,1.23419,1621.1,1621.0,2.6018]
[1744263801080,1.23419,1621.1,1620.9,9.66002559]
[1744263801081,1.23427,1621.0,1620.9,9.66002559]
[1744263801276,4.66067,1621.0,1620.9,9.66002559]
[1744263801483,9.66067,1621.0,1620.9,9.66002559]
[1744263802380,4.66067,1621.0,1620.9,9.66002559]
[1744263802781,3.98017,1621.0,1620.9,10.89437559]
[1744263803089,1.23435,1620.9,1620.8,2.85116]
[1744263803387,1.23435,1620.9,1620.8,6.05896]
[1744263803574,2.76685,1620.9,1620.8,6.05896]
[1744263804285,2.76685,1620.9,1620.8,1.6168]
[1744263804885,1.23442,1620.8,1620.7,10.90371342]
[1744263805087,2.77182,1620.8,1620.7,12.51631342]
[1744263806487,6.97882,1620.8,1620.7,12.51638342]
[1744263806690,6.97882,1620.8,1620.7,11.28188342]
[1744263806887,6.97882,1620.8,1620.7,12.51638342]
[1744263807187,2.77182,1620.8,1620.7,12.51638342]
[1744263807780,2.77182,1620.8,1620.7,9.66928342]
[1744263809388,2.77182,1620.8,1620.7,0.00925783]
[1744263810491,8.45282,1620.8,1620.7,0.00925783]
[1744263811088,8.45282,1620.8,1620.3,3.7996]
[1744263811089,3.08664,1620.5,1620.3,1.1295]
[1744263811288,1.23473,1620.4,1620.3,1.1295]
[1744263811589,3.99453,1620.4,1620.3,1.1295]
[1744263811985,1.23488,1620.2,1620.1,9.66002559]
[1744263812289,5.44288,1620.2,1620.1,9.66002559]
[1744263812786,11.27688,1620.2,1620.1,9.66002559]
[1744263813185,17.94298,1620.2,1620.1,9.66002559]
[1744263813592,1.23496,1620.1,1620.0,0.00925783]
[1744263813792,8.73506,1620.1,1620.0,0.00925783]
[1744263814988,9.40446,1620.1,1620.0,0.00925783]
[1744263815490,17.61226,1620.1,1620.0,7.83e-06]
[1744263815988,1.23526,1619.7,1619.6,14.49003838]
[1744263816194,14.48606,1619.7,1619.6,14.49003838]
[1744263818194,7.06926,1619.7,1619.6,14.49003838]
[1744263818390,11.27926,1619.7,1619.6,16.03923838]
[1744263818789,4.21,1619.7,1619.6,17.27457838]
[1744263818995,5.44526,1619.7,1619.6,17.27457838]
[1744263819194,4.21,1619.7,1619.6,17.27457838]
[1744263819589,5.44526,1619.7,1619.6,2.78454]
[1744263819886,4.21,1619.7,1619.6,2.78454]
[1744263820196,5.44526,1619.7,1619.6,2.78454]
[1744263821395,5.44526,1619.7,1619.6,1.5492]
[1744263821795,1.23534,1619.6,1619.5,0.00925783]
[1744263821993,13.12524,1619.6,1619.5,0.00925783]
[1744263825498,7.06934,1619.6,1619.5,1.24466783]
[1744263825895,5.44434,1619.6,1619.5,5.58066783]
[1744263827195,4.209,1619.6,1619.5,5.58066783]
[1744263827900,101.17215,1619.9,1619.8,1.23518]
[1744263828102,105.38115,1619.9,1619.8,1.23518]
[1744263828302,11.27811,1619.9,1619.8,1.23518]
[1744263828500,11.27811,1619.9,1619.8,2.84978]
[1744263831500,10.043,1619.9,1619.8,2.84978]
[1744263831705,4.209,1619.9,1619.8,2.84978]
[1744263831906,5.44411,1619.9,1619.8,2.84978]
[1744263832902,5.44411,1619.9,1619.8,1.6146]
[1744263833603,1.23526,1619.7,1619.6,1.1264]
[1744263833799,1.23526,1619.7,1619.6,4.02284]
[1744263835304,1.23526,1619.7,1619.6,7.23064]
[1744263835509,1.23524,1619.8,1619.7,1.23519]
[1744263835694,1.23524,1619.8,1619.7,2.87899]
[1744263835894,1.23524,1619.8,1619.7,2.87906]
[1744263836197,1.23524,1619.8,1619.7,1.6438]
[1744263836397,1.23524,1619.8,1619.7,2.87906]
[1744263836803,5.44424,1619.8,1619.7,2.87906]
[1744263838807,4.209,1619.8,1619.7,2.87906]
[1744263839508,5.44418,1619.8,1619.7,2.87906]
[1744263840511,1.23518,1619.8,1619.7,2.87906]
[1744263840711,5.44418,1619.8,1619.7,2.87906]
[1744263843404,7.08328,1619.8,1619.7,1.6438]
[1744263843611,7.08328,1619.8,1619.7,2.87906]
[1744263843811,1.23518,1619.8,1619.7,2.87906]
[1744263844012,5.834,1619.9,1619.8,1.23518]
[1744263844211,5.834,1619.9,1619.8,6.06768]
[1744263844602,4.209,1620.1,1619.8,7.92047]
[1744263844808,5.44401,1620.1,1620.0,1.23503]
[1744263845207,5.44401,1620.1,1620.0,2.85973]
[1744263845410,5.44401,1620.1,1620.0,6.06753]
[1744263846121,4.209,1620.1,1620.0,6.06753]
[1744263847023,5.44387,1620.3,1620.2,1.23488]
[1744263847222,1.23488,1620.2,1620.1,1.6803]
[1744263847409,1.23488,1620.2,1620.1,2.91526]
[1744263850610,5.44388,1620.2,1620.1,2.91526]
[1744263851017,5.44388,1620.2,1620.1,1.6803]
[1744263851219,5.44388,1620.2,1620.1,2.91526]
[1744263851516,5.44388,1620.2,1620.0,3.2078]
[1744263851723,1.23503,1620.0,1619.9,3.51045]
[1744263852020,1.23503,1620.0,1619.9,5.17125]
[1744263852416,2.89673,1620.0,1619.9,5.17125]
[1744263853016,1.6617,1620.0,1619.9,5.17125]
[1744263853214,1.23503,1620.1,1620.0,1.23503]
[1744263853417,12.86304,1620.2,1620.1,1.23496]
[1744263853722,11.27794,1620.2,1620.1,1.23496]
[1744263853922,12.86304,1620.2,1620.1,2.81086]
[1744263854223,8.65404,1620.2,1620.1,2.81086]
[1744263854524,7.06894,1620.2,1620.1,2.81086]
[1744263854720,5.834,1620.2,1620.1,2.81086]
[1744263857227,1.23476,1620.4,1620.3,1.23473]
[1744263857418,1.2348,1620.3,1620.2,7.1653]
[1744263858022,2.84819,1620.4,1620.3,1.2348]
[1744263858222,2.84819,1620.4,1620.3,2.8365]
[1744263859532,12.62153978,1620.5,1620.4,1.23473]
[1744263859736,11.48153978,1620.5,1620.4,7.05093]
[1744263860228,11.48153978,1620.5,1620.4,47.85093]
[1744263860932,7.27453978,1620.5,1620.4,47.85093]
[1744263861629,7.27453978,1620.5,1620.4,52.85093]
[1744263862325,5.49413978,1620.5,1620.4,57.85093]
[1744263863130,0.16013979,1620.5,1620.4,63.84693]
[1744263863734,0.00925783,1620.6,1620.5,1.23465]
[1744263863930,0.00925783,1620.6,1620.5,2.87235]
[1744263864437,0.00925783,1620.6,1620.5,43.67235]
[1744263865331,0.00925783,1620.6,1620.5,48.67235]
[1744263865939,1.24382783,1620.6,1620.5,48.67235]
[1744263866126,0.00925783,1620.6,1620.5,48.67235]
[1744263866637,1.24382783,1620.6,1620.5,48.67235]
[1744263867938,1.24382783,1620.6,1620.5,45.8]
[1744263868139,5.44982783,1620.6,1620.5,45.8]
[1744263868439,10.44982783,1620.6,1620.5,5.0]
[1744263868630,16.28382783,1620.6,1620.5,5.0]
[1744263868830,1.23465,1620.5,1620.4,0.00925783]
[1744263869031,4.00205,1620.5,1620.4,1.24398783]
[1744263870240,8.20805,1620.5,1620.4,1.24398783]
[1744263870944,8.20805,1620.5,1620.4,4.45178783]
[1744263871429,6.9734,1620.5,1620.4,4.45178783]
[1744263872037,8.20805,1620.5,1620.4,3.21705783]
[1744263872539,8.20805,1620.5,1620.4,4.45178783]
[1744263872942,8.20805,1620.5,1620.4,3.21705783]
[1744263873133,8.20805,1620.5,1620.4,0.00925783]
[1744263874543,13.20805,1620.5,1620.4,0.00925783]
[1744263875440,7.11945,1620.5,1620.4,1.24398783]
[1744263875634,8.25575,1620.5,1620.4,0.00925783]
[1744263875835,13.25575,1620.5,1620.4,0.00925783]
[1744263876740,16.46355,1620.5,1620.4,0.00925783]
[1744263877139,21.0629,1620.5,1619.5,14.49003838]
[1744263877338,1.23518,1619.8,1619.7,3.2078]
[1744263877539,1.23518,1619.8,1619.7,4.44306]
[1744263878042,2.77128,1619.8,1619.7,3.2078]
[1744263878244,2.77128,1619.8,1619.7,4.44306]
[1744263878745,1.5361,1619.8,1619.7,4.44306]
[1744263878937,7.06909,1620.0,1619.9,1.23511]
[1744263879137,12.81119,1620.0,1619.9,1.23511]
[1744263879338,11.5761,1620.0,1619.9,4.44291]
[1744263879738,12.81113,1620.0,1619.9,4.44291]
[1744263879943,1.23511,1619.9,1619.8,2.78332]
[1744263880139,11.27507,1620.0,1619.9,1.23511]
[1744263880344,11.27507,1620.0,1619.9,6.08501]
[1744263881648,5.44107,1620.0,1619.9,6.08501]
[1744263881944,5.44107,1620.0,1619.9,4.8499]
[1744263882153,1.23518,1619.8,1619.7,5.55362]
[1744263882636,1.23518,1619.8,1619.7,7.19572]
[1744263885149,3.97568,1619.9,1619.8,1.23518]
[1744263885340,1.23518,1619.8,1619.7,5.9605]
[1744263885536,2.7405,1619.9,1619.7,7.19569]
[1744263885740,2.7405,1619.9,1619.8,1.23518]